bitfinex-derivatives/quotes_SOLF0:USTF0_20250109
["timestamp","ask_amount","ask_price","bid_price","bid_amount"]
[1736450070905,7.7563975,188.95,188.89,2.647]
[1736450071314,2.6466,188.93,188.89,2.647]
[1736450071910,2.6466,188.93,188.9,7.7563975]
[1736450073508,7.7563975,188.95,188.9,7.7563975]
[1736450073715,7.7563975,188.95,188.88,2.6472]
[1736450074107,2.6468,188.92,188.88,2.6472]
[1736450076014,7.57852231,189.02,188.91,7.7563975]
[1736450076216,7.7563975,188.98,188.91,7.7563975]
[1736450076615,2.6463,188.95,188.92,2.6466]
[1736450076817,7.7563975,188.96,188.91,7.7563975]
[1736450078117,2.6463,188.95,188.91,10.4030975]
[1736450078419,7.7563975,188.96,188.91,7.7563975]
[1736450078716,2.6462,188.96,188.92,2.6467]
[1736450079414,2.6462,188.96,188.91,7.7563975]
[1736450079415,2.6463,188.95,188.91,2.6468]
[1736450079619,7.7563975,188.96,188.91,2.6468]
[1736450081320,2.6464,188.94,188.91,2.6468]
[1736450082315,7.7563975,188.92,188.87,1.5178]
[1736450082920,2.6469,188.91,188.87,1.5178]
[1736450083121,7.7563975,188.92,188.87,1.5178]
[1736450083719,2.6471,188.9,188.87,1.5178]
[1736450085424,7.7563975,188.92,188.87,1.5178]
[1736450085829,7.7563975,188.94,188.87,1.5178]
[1736450087219,7.57852231,189.06,188.88,7.7563975]
[1736450087525,7.7563975,188.97,188.9,7.7563975]
[1736450087725,2.646,188.98,188.92,7.7563975]
[1736450087923,7.7563975,188.99,188.92,7.7563975]
[1736450088530,2.646,188.97,188.93,2.6465]
[1736450089230,2.6462,188.96,188.93,2.6465]
[1736450089627,7.7563975,188.99,188.93,2.6465]
[1736450090130,7.7563975,188.97,188.93,2.6465]
[1736450090332,7.7563975,188.97,188.92,7.7563975]
[1736450090926,2.6463,188.96,188.92,2.6466]
[1736450091525,2.6463,188.96,188.93,2.6466]
[1736450092130,7.7563975,188.98,188.93,2.6466]
[1736450092325,2.6461,188.97,188.93,2.6466]
[1736450092733,7.7563975,188.98,188.93,2.6466]
[1736450092926,2.6462,188.96,188.93,2.6466]
[1736450098631,2.6462,188.96,188.9,7.7563975]
[1736450098835,2.6462,188.96,188.92,2.6467]
[1736450099227,10.4025975,188.96,188.92,2.6467]
[1736450100635,7.7563975,188.96,188.9,7.7563975]
[1736450100837,5.2908,189.02,188.87,1.5178]
[1736450101034,7.7563975,188.97,188.9,7.7563975]
[1736450101835,2.6464,188.95,188.9,10.4032975]
[1736450102237,2.6465,188.94,188.9,7.7563975]
[1736450102428,7.7563975,188.97,188.87,1.5178]
[1736450102628,7.7563975,188.95,188.88,7.7563975]
[1736450103332,7.7563975,188.91,188.87,1.5178]
[1736450103533,4.76,188.97,188.84,7.35023598]
[1736450103534,7.7563975,188.89,188.84,7.35023598]
[1736450104033,2.6475,188.87,188.83,2.648]
[1736450104934,2.6475,188.87,188.82,9.3060975]
[1736450104935,7.7563975,188.89,188.82,9.3060975]
[1736450105236,7.7563975,188.87,188.8,10.9095975]
[1736450105638,7.7563975,188.85,188.8,1.591]
[1736450105840,7.7563975,188.83,188.77,30.88814393]
[1736450106038,7.7563975,188.83,188.77,1.4872]
[1736450106942,7.7563975,188.83,188.75,10.8673975]
[1736450107238,7.7563975,188.83,188.75,13.5163975]
[1736450107239,2.6486,188.79,188.75,13.5163975]
[1736450109143,7.7563975,188.81,188.75,10.8673975]
[1736450109840,7.7563975,188.79,188.72,1.4872]
[1736450110045,7.7563975,188.77,188.72,1.4872]
[1736450110439,2.6493,188.74,188.72,1.4872]
[1736450110836,2.6495,188.73,188.71,5.66721876]
[1736450111038,7.7563975,188.77,188.71,5.66721876]
[1736450111539,2.6493,188.74,188.71,5.66721876]
[1736450112640,7.7563975,188.77,188.71,5.66721876]
[1736450112846,7.7563975,188.75,188.68,10.8753975]
[1736450113143,7.7563975,188.73,188.68,10.8753975]
[1736450113345,2.6499,188.7,188.68,10.8753975]
[1736450113548,7.7563975,188.73,188.68,1.5351]
[1736450113742,7.7563975,188.73,188.66,7.7563975]
[1736450114140,2.6499,188.7,188.66,7.7563975]
[1736450114338,7.7563975,188.73,188.66,7.7563975]
[1736450114755,2.6495,188.72,188.68,7.7563975]
[1736450114945,9.11967274,188.85,188.68,7.7563975]
[1736450115247,7.7563975,188.78,188.7,7.7563975]
[1736450115748,7.7563975,188.76,188.7,7.7563975]
[1736450116049,2.6492,188.75,188.7,10.4060975]
[1736450116248,7.7563975,188.78,188.7,7.7563975]
[1736450116643,2.649,188.76,188.71,2.6495]
[1736450117051,2.649,188.76,188.72,7.7563975]
[1736450119649,2.6488,188.77,188.74,7.7563975]
[1736450121859,2.6491,188.75,188.72,7.7563975]
[1736450122047,7.7563975,188.8,188.72,7.7563975]
[1736450122553,2.649,188.76,188.72,7.7563975]
[1736450123053,2.649,188.76,188.72,10.4058975]
[1736450124554,7.7563975,188.78,188.7,10.7871975]
[1736450124853,7.7563975,188.76,188.7,7.7563975]
[1736450125056,2.6492,188.75,188.7,7.7563975]
[1736450125353,7.7563975,188.76,188.69,1.6135]
[1736450125753,2.6495,188.73,188.69,4.2634]
[1736450127255,5.2933,188.93,188.72,7.7563975]
[1736450127456,7.7563975,188.88,188.81,7.7563975]
[1736450128252,2.6477,188.86,188.81,10.4044975]
[1736450128859,7.7563975,188.88,188.81,10.4044975]
[1736450129161,7.7563975,188.9,188.83,7.7563975]
[1736450129965,2.6474,188.88,188.83,7.7563975]
[1736450130567,2.6474,188.87,188.83,7.7563975]
[1736450131256,2.6474,188.87,188.82,2.648]
[1736450131763,12.1179141,188.92,188.79,13.6498141]
[1736450132763,12.1179141,188.89,188.79,13.6498141]
[1736450133063,12.1179141,188.89,188.79,1.5319]
[1736450133667,2.648,188.83,188.79,1.5319]
[1736450134365,2.6482,188.82,188.79,1.5319]
[1736450134564,12.1179141,188.89,188.79,1.5319]
[1736450134762,12.1179141,188.89,188.78,1.6155]
[1736450134964,2.6482,188.81,188.78,1.6155]
[1736450135767,12.1179141,188.89,188.78,1.6155]
[1736450135768,2.6481,188.82,188.78,1.6155]
[1736450137069,12.1179141,188.89,188.78,1.6155]
[1736450137567,0.84261238,188.88,188.78,1.6155]
[1736450138068,2.6483,188.81,188.78,1.6155]
[1736450139364,12.1179141,188.89,188.78,1.6155]
[1736450139565,0.8426118,188.88,188.78,1.6155]
[1736450140068,2.6485,188.8,188.78,1.6155]
[1736450141065,12.1179141,188.86,188.74,4.1789]
[1736450141270,12.1179141,188.86,188.73,13.6093141]
[1736450141670,16.8979141,188.86,188.73,13.6093141]
[1736450141872,2.6488,188.78,188.73,16.2586141]
[1736450142666,16.8979141,188.86,188.73,16.2586141]
[1736450142872,12.1179141,188.83,188.73,1.4914]
[1736450144175,2.649,188.76,188.73,1.4914]
[1736450145474,12.1179141,188.8,188.7,3.2132]
[1736450146875,2.6497,188.71,188.68,2.65]
[1736450147065,2.6497,188.71,188.67,12.1179141]
[1736450147269,12.1179141,188.77,188.65,3.1631]
[1736450147973,12.1179141,188.74,188.65,1.5815]
[1736450148374,12.1179141,188.74,188.64,1.5499]
[1736450148375,12.1179141,188.74,188.6,12.1179141]
[1736450148570,2.6505,188.65,188.61,2.651]
[1736450148770,12.1179141,188.74,188.61,2.651]
[1736450149168,12.1179141,188.71,188.6,16.3278141]
[1736450149864,12.1179141,188.71,188.6,13.6766141]
[1736450150069,2.6507,188.64,188.6,16.3278141]
[1736450150977,2.651,188.62,188.6,1.5587]
[1736450151167,12.1179141,188.68,188.6,1.5587]
[1736450151370,12.1179141,188.68,188.57,12.1179141]
[1736450151975,2.651,188.62,188.57,14.7695141]
[1736450153273,1.5745,188.76,188.6,12.1179141]
[1736450153477,12.1179141,188.74,188.6,12.1179141]
[1736450153775,2.6504,188.66,188.62,2.6508]
[1736450153974,2.6504,188.66,188.6,12.1179141]
[1736450154673,2.6506,188.65,188.6,12.1179141]
[1736450154875,12.1179141,188.71,188.57,12.1179141]
[1736450155278,2.6507,188.64,188.57,12.1179141]
[1736450155478,12.1179141,188.71,188.55,4.8057]
[1736450155680,12.1179141,188.68,188.55,16.9236141]
[1736450155973,16.8979141,188.68,188.55,16.9236141]
[1736450156180,16.8979141,188.68,188.56,62.82546888]
[1736450156379,2.6511,188.62,188.56,62.82546888]
[1736450156580,16.8979141,188.68,188.56,60.17376888]
[1736450156781,16.8979141,188.68,188.57,2.6515]
[1736450157184,2.6505,188.65,188.57,2.6515]
[1736450157384,16.8979141,188.68,188.57,2.6515]
[1736450158085,2.6509,188.63,188.57,2.6515]
[1736450158584,16.8979141,188.68,188.57,2.6515]
[1736450158784,2.651,188.62,188.57,2.6515]
[1736450159484,4.78,188.68,188.58,12.1179141]
[1736450159688,16.8979141,188.73,188.61,12.1179141]
[1736450159882,4.78,188.73,188.62,1.6034]
[1736450160087,13.6924141,188.76,188.65,2.6505]
[1736450160286,13.6924141,188.76,188.64,12.1179141]
[1736450160493,2.6499,188.7,188.65,2.6505]
[1736450160696,13.6924141,188.76,188.65,2.6505]
[1736450160991,13.6924141,188.76,188.64,12.1179141]
[1736450161888,13.6924141,188.76,188.62,1.6034]
[1736450161889,12.1179141,188.7,188.62,1.6034]
[1736450162090,2.6505,188.66,188.62,1.6034]
[1736450162593,12.1179141,188.7,188.62,1.6034]
[1736450162796,2.6507,188.64,188.62,1.6034]
[1736450162994,12.1179141,188.7,188.62,1.6034]
[1736450163294,2.6507,188.64,188.62,1.6034]
[1736450164798,2.6508,188.63,188.62,1.6034]
[1736450167291,1.5745,188.76,188.62,1.6034]
[1736450167496,12.1179141,188.73,188.62,1.6034]
[1736450167898,2.6504,188.66,188.63,2.6507]
[1736450168097,12.1179141,188.73,188.62,1.6034]
[1736450168601,2.6507,188.64,188.62,1.6034]
[1736450168794,12.1179141,188.73,188.62,1.6034]
[1736450169191,2.6507,188.64,188.62,1.6034]
[1736450174795,1.5745,188.76,188.62,1.6034]
[1736450175002,5.2956,188.85,188.69,12.1179141]
[1736450175202,12.1179141,188.82,188.69,12.1179141]
[1736450175500,2.649,188.76,188.72,2.6495]
[1736450175698,12.1179141,188.82,188.7,1.6127]
[1736450175904,12.1179141,188.86,188.72,12.1179141]
[1736450176402,2.6482,188.82,188.75,12.1179141]
[1736450176603,12.1179141,188.86,188.75,12.1179141]
[1736450177304,2.648,188.83,188.77,2.6488]
[1736450177505,12.1179141,188.86,188.77,2.6488]
[1736450177911,12.1179141,188.86,188.72,12.1179141]
[1736450178207,12.1179141,188.83,188.74,2.6491]
[1736450178799,12.1179141,188.83,188.72,12.1179141]
[1736450179000,12.1179141,188.86,188.76,2.6489]
[1736450179803,2.6482,188.82,188.76,2.6489]
[1736450180000,12.1179141,188.86,188.75,2.6491]
[1736450180199,2.6481,188.82,188.72,12.1179141]
[1736450180400,12.1179141,188.86,188.72,12.1179141]
[1736450180601,12.1179141,188.86,188.76,2.6489]
[1736450180800,2.6484,188.81,188.76,2.6489]
[1736450181502,2.6485,188.79,188.75,2.6491]
[1736450181702,2.6485,188.79,188.72,12.1179141]
[1736450182604,2.6485,188.79,188.74,2.6492]
[1736450182804,12.1179141,188.86,188.72,12.1179141]
[1736450183004,12.1179141,188.86,188.76,2.6489]
[1736450184304,2.648,188.83,188.76,2.6489]
[1736450184503,12.1179141,188.86,188.78,2.6486]
[1736450184704,94.7779141,188.89,188.75,12.1179141]
[1736450185009,2.6474,188.87,188.78,12.1179141]
[1736450185204,2.6474,188.87,188.79,1.6212]
[1736450185805,2.6476,188.86,188.81,2.6481]
[1736450186009,94.7779141,188.89,188.81,2.6481]
[1736450186513,12.1179141,188.86,188.76,3.1285]
[1736450187107,2.6482,188.82,188.77,2.6488]
[1736450187705,94.7779141,188.89,188.76,3.1285]
[1736450188000,12.1179141,188.89,188.78,12.1179141]
[1736450188206,2.6476,188.86,188.81,2.6482]
[1736450188402,12.1179141,188.89,188.81,2.6482]
[1736450188902,12.1179141,188.89,188.76,3.1285]
[1736450189905,12.1179141,188.89,188.8,2.6483]
[1736450190110,12.1179141,188.89,188.76,3.1285]
[1736450191312,12.1179141,188.86,188.76,3.1285]
[1736450191909,2.6479,188.84,188.8,2.6484]
[1736450192512,2.6482,188.82,188.78,2.6486]
[1736450193510,2.6483,188.81,188.77,2.6488]
[1736450194113,2.6485,188.8,188.76,5.7774]
[1736450194908,2.6485,188.8,188.76,2.6489]
[1736450195414,12.1179141,188.86,188.74,1.6212]
[1736450195615,12.1179141,188.83,188.74,1.6212]
[1736450196721,2.6483,188.81,188.74,1.6212]
[1736450196914,12.1179141,188.83,188.74,1.6212]
[1736450198112,2.6489,188.77,188.74,1.6212]
[1736450202117,2.6486,188.79,188.74,1.6212]
[1736450202523,2.6484,188.8,188.77,2.6488]
[1736450203517,2.6483,188.81,188.78,2.6486]
[1736450204321,2.6483,188.81,188.74,1.6212]
[1736450204322,12.1179141,188.89,188.75,12.1179141]
[1736450207826,2.6473,188.88,188.83,2.6479]
[1736450208028,2.6471,188.9,188.82,1.5014]
[1736450208426,12.1179141,188.93,188.82,1.5014]
[1736450208627,2.6469,188.91,188.86,2.6474]
[1736450208828,99.5379141,188.96,188.86,2.6474]
[1736450209028,0.84222344,188.95,188.82,1.5014]
[1736450209228,2.6471,188.9,188.85,2.6476]
[1736450209924,12.1179141,188.93,188.83,2.6479]
[1736450211026,2.6474,188.87,188.83,2.6479]
[1736450211428,12.1179141,188.93,188.84,2.6478]
[1736450212235,2.6473,188.88,188.84,2.6478]
[1736450214431,94.7779141,188.96,188.84,12.1179141]
[1736450215036,12.1179141,188.96,188.84,12.1179141]
[1736450215435,12.1179141,188.96,188.89,2.6471]
[1736450216340,2.6464,188.94,188.89,2.6471]
[1736450216541,12.1179141,188.96,188.87,2.6473]
[1736450216740,12.1179141,188.96,188.84,12.1179141]
[1736450216942,2.6469,188.91,188.84,12.1179141]
[1736450217137,2.6469,188.91,188.86,2.6474]
[1736450217444,2.6469,188.91,188.84,12.1179141]
[1736450217642,2.647,188.9,188.84,12.1179141]
[1736450217844,2.647,188.9,188.86,2.6474]
[1736450218045,2.6471,188.89,188.84,12.1179141]
[1736450218240,12.1179141,188.96,188.85,2.6476]
[1736450220147,2.6472,188.89,188.85,2.6476]
[1736450224645,12.1179141,188.92,188.82,1.5014]
[1736450226252,2.6474,188.87,188.84,2.6478]
[1736450229749,2.647,188.9,188.87,2.6474]
[1736450229954,2.647,188.9,188.82,13.6193141]
[1736450231551,2.6474,188.87,188.82,1.5014]
[1736450231950,12.1179141,188.92,188.83,2.6479]
[1736450232158,2.6477,188.86,188.83,2.6479]
[1736450234654,2.6477,188.86,188.82,1.5014]
[1736450234846,12.1179141,188.92,188.82,1.5014]
[1736450235051,12.1179141,188.95,188.82,13.6193141]
[1736450235549,2.6471,188.9,188.87,2.6473]
[1736450236250,12.1179141,188.95,188.87,2.6473]
[1736450236457,2.6469,188.91,188.88,2.6473]
[1736450238358,12.1179141,188.95,188.82,13.6193141]
[1736450238359,2.6471,188.89,188.82,13.6193141]
[1736450238754,12.1179141,188.95,188.82,13.6193141]
[1736450238950,2.6472,188.89,188.85,2.6476]
[1736450239151,12.1179141,188.95,188.85,2.6476]
[1736450239359,0.84225625,188.94,188.82,13.6193141]
[1736450239557,2.6474,188.88,188.84,2.6478]
[1736450242462,12.1179141,188.92,188.84,2.6478]
[1736450242664,2.6473,188.88,188.84,2.6478]
[1736450247968,7.75452851,188.9,188.82,1.5014]
[1736450248269,7.75452851,188.88,188.82,1.5014]
[1736450248660,2.6478,188.84,188.82,1.5014]
[1736450248866,7.75452851,188.86,188.79,9.36762851]
[1736450249467,2.648,188.83,188.8,2.6483]
[1736450249664,7.75452851,188.86,188.79,1.6131]
[1736450249871,7.75452851,188.84,188.77,15.04816709]
[1736450250069,2.6486,188.79,188.76,4.1718]
[1736450250270,7.75452851,188.82,188.76,1.5229]
[1736450250563,2.6484,188.81,188.77,2.6488]
[1736450252875,2.6484,188.8,188.77,2.6488]
[1736450254174,2.6484,188.8,188.76,1.5229]
[1736450254381,2.6484,188.8,188.76,4.1718]
[1736450257073,2.6487,188.79,188.76,1.5229]
[1736450259378,2.6488,188.78,188.74,4.294]
[1736450259769,12.12458217,188.83,188.73,5.66766362]
[1736450259971,2.6489,188.77,188.73,5.66766362]
[1736450260576,2.6489,188.77,188.74,2.6492]
[1736450262284,2.649,188.76,188.74,2.6492]
[1736450263783,2.6492,188.74,188.7,1.585]
[1736450263981,12.12458217,188.8,188.7,1.585]
[1736450264280,2.6493,188.74,188.71,2.6496]
[1736450264780,4.76,188.82,188.71,12.12458217]
[1736450265181,4.76,188.82,188.74,12.12458217]
[1736450265480,1.5606,188.85,188.74,12.12458217]
[1736450265780,2.6482,188.82,188.78,2.6486]
[1736450266179,24.47347195,188.89,188.77,12.12458217]
[1736450266379,16.88458217,188.89,188.78,1.5059]
[1736450266579,2.6478,188.85,188.81,2.6482]
[1736450267281,2.6476,188.86,188.78,1.5059]
[1736450267480,4.76,188.91,188.78,1.5059]
[1736450267783,4.76,188.91,188.83,2.6479]
[1736450267784,2.6475,188.87,188.83,2.6479]
[1736450268881,2.6476,188.86,188.82,2.6481]
[1736450269081,4.76,188.91,188.82,2.6481]
[1736450270684,12.12458217,188.89,188.78,1.5059]
[1736450271289,4.76,188.91,188.8,12.12458217]
[1736450271485,12.12458217,188.92,188.8,12.12458217]
[1736450271691,2.6472,188.89,188.85,2.6476]
[1736450272091,12.12458217,188.95,188.83,12.12458217]
[1736450272291,12.12458217,188.95,188.84,1.5354]
[1736450272494,4.76,188.97,188.84,3.149]
[1736450272799,16.88458217,188.98,188.89,2.647]
[1736450272999,16.88458217,188.98,188.85,1.4826]
[1736450273395,2.6467,188.93,188.88,2.6472]
[1736450274599,16.88458217,188.98,188.88,2.6472]
[1736450274799,2.6467,188.92,188.88,2.6472]
[1736450277803,2.6468,188.91,188.87,2.6474]
[1736450280405,12.12458217,188.92,188.85,1.4826]
[1736450281103,12.12458217,188.95,188.85,1.4826]
[1736450281804,2.6468,188.92,188.85,1.4826]
[1736450282304,2.6469,188.91,188.87,2.6474]
[1736450283600,2.6469,188.91,188.85,1.4826]
[1736450283601,12.12458217,188.95,188.85,1.4826]
[1736450283803,2.6472,188.91,188.85,1.4826]
[1736450284297,2.6472,188.91,188.87,2.6476]
[1736450284500,2.6473,188.9,188.85,1.4826]
[1736450284701,12.12458217,188.95,188.85,4.1305]
[1736450284902,12.12458217,188.95,188.85,1.4826]
[1736450285098,2.6476,188.88,188.85,1.4826]
[1736450286007,2.6476,188.88,188.85,4.1305]
[1736450288607,12.12458217,188.95,188.85,1.4826]
[1736450288810,0.84228047,188.94,188.8,12.12458217]
[1736450289206,2.6478,188.87,188.83,2.6482]
[1736450289404,4.76,188.91,188.78,4.7155]
[1736450290207,2.6479,188.86,188.82,2.6483]
[1736450290811,2.648,188.85,188.82,2.6483]
[1736450291212,2.6479,188.86,188.8,2.6486]
[1736450291412,12.12458217,188.89,188.8,2.6486]
[1736450291913,2.6482,188.84,188.8,2.6486]
[1736450292211,12.12458217,188.89,188.79,2.6488]
[1736450292415,2.6482,188.84,188.78,4.7155]
[1736450292715,2.6482,188.84,188.8,2.6486]
[1736450293410,2.6482,188.83,188.8,2.6486]
[1736450293715,2.6482,188.83,188.78,4.7155]
[1736450293915,2.6482,188.83,188.79,2.6487]
[1736450294117,2.6484,188.82,188.79,2.6487]
[1736450294816,12.12458217,188.89,188.79,2.6487]
[1736450295217,12.12458217,188.89,188.8,2.6486]
[1736450295716,12.12458217,188.89,188.78,4.7155]
[1736450295913,2.6485,188.82,188.78,4.7155]
[1736450296714,2.6485,188.82,188.79,2.6488]
[1736450296915,2.6486,188.81,188.78,4.7155]
[1736450297917,2.6486,188.81,188.78,7.3644]
[1736450298113,12.12458217,188.89,188.78,7.3644]
[1736450298315,2.6486,188.81,188.78,7.3644]
[1736450299121,12.12458217,188.86,188.76,5.66676933]
[1736450299420,2.649,188.78,188.76,8.31596933]
[1736450301520,7.76136801,188.81,188.76,8.31596933]
[1736450301721,2.6488,188.79,188.76,8.31596933]
[1736450302321,7.76136801,188.81,188.76,5.66676933]
[1736450302616,2.6489,188.78,188.76,5.66676933]
[1736450302820,7.76136801,188.81,188.74,7.76136801]
[1736450303220,2.6491,188.77,188.74,7.76136801]
[1736450303522,5.2947,188.9,188.76,7.76136801]
[1736450303722,2.6486,188.81,188.77,2.6489]
[1736450304718,7.76136801,188.84,188.77,2.6489]
[1736450305310,2.6486,188.81,188.77,2.6489]
[1736450305719,7.76136801,188.84,188.77,2.6489]
[1736450306820,7.76136801,188.82,188.77,2.6489]
[1736450307123,2.6487,188.8,188.77,2.6489]
[1736450307330,7.76136801,188.82,188.76,2.6492]
[1736450307522,7.76136801,188.8,188.74,7.76136801]
[1736450307721,2.649,188.78,188.74,7.76136801]
[1736450309123,2.649,188.78,188.75,2.6493]
[1736450310722,2.6491,188.77,188.74,10.41086801]
[1736450310926,7.76136801,188.8,188.74,7.76136801]
[1736450311226,4.76,188.84,188.72,3.1808]
[1736450311227,2.6496,188.74,188.72,1.5663]
[1736450311425,4.76,188.84,188.69,7.76136801]
[1736450311426,7.76136801,188.76,188.69,7.76136801]
[1736450311924,2.6498,188.72,188.69,7.76136801]
[1736450312119,2.6498,188.72,188.68,2.6503]
[1736450312324,2.6502,188.7,188.66,33.34405434]
[1736450312526,7.76136801,188.72,188.66,30.69345434]
[1736450312921,2.6503,188.69,188.66,1.5189]
[1736450313319,7.76136801,188.7,188.66,1.5189]
[1736450313526,7.76136801,188.7,188.63,15.05500659]
[1736450313527,2.6505,188.67,188.63,15.05500659]
[1736450313929,2.6505,188.67,188.63,7.76136801]
[1736450314325,2.6505,188.67,188.63,10.41236801]
[1736450314626,2.6505,188.67,188.63,7.76136801]
[1736450315021,2.6505,188.67,188.62,2.6511]
[1736450315323,2.6505,188.67,188.61,15.19690653]
[1736450316123,2.6505,188.67,188.63,2.6509]
[1736450316723,2.6505,188.67,188.61,15.19690653]
[1736450316724,2.6507,188.66,188.62,2.6511]
[1736450318925,12.14110653,188.7,188.61,3.0558]
[1736450319130,12.14110653,188.7,188.59,1.617]
[1736450319330,12.14110653,188.7,188.59,3.1164]
[1736450319629,12.14110653,188.7,188.61,2.6512]
[1736450319630,2.6508,188.65,188.61,2.6512]
[1736450321030,2.6509,188.64,188.61,2.6512]
[1736450321231,16.90110653,188.7,188.59,5.7679]
[1736450321433,12.14110653,188.67,188.59,3.1164]
[1736450321629,2.6515,188.6,188.59,1.4994]
[1736450324934,2.6515,188.6,188.57,2.6519]
[1736450325335,2.6513,188.61,188.58,2.6517]
[1736450325733,12.14110653,188.64,188.53,1.5943]
[1736450326235,2.652,188.57,188.53,4.2466]
[1736450326533,4.76,188.63,188.53,1.5943]
[1736450327132,2.6518,188.58,188.54,2.6523]
[1736450327332,4.76,188.63,188.54,2.6523]
[1736450328740,2.652,188.57,188.53,4.2467]
[1736450328933,4.76,188.63,188.53,4.2467]
[1736450329531,2.6519,188.57,188.53,4.2467]
[1736450331238,2.652,188.56,188.53,4.2467]
[1736450331629,12.14110653,188.61,188.53,4.2467]
[1736450331830,2.652,188.57,188.53,4.2467]
[1736450332738,2.652,188.57,188.53,1.5943]
[1736450333036,2.652,188.57,188.54,2.6523]
[1736450333944,2.652,188.57,188.53,4.2467]
[1736450335741,12.14110653,188.61,188.53,1.5943]
[1736450335943,2.6516,188.59,188.56,2.652]
[1736450336141,12.14110653,188.65,188.53,13.73540653]
[1736450336439,16.90110653,188.68,188.53,13.73540653]
[1736450336638,2.6512,188.62,188.59,2.6515]
[1736450336841,16.90110653,188.68,188.59,2.6515]
[1736450337230,12.14110653,188.65,188.53,13.73540653]
[1736450337444,7.77637463,188.61,188.54,7.77637463]
[1736450337741,2.6517,188.59,188.55,2.6521]
[1736450337941,7.77637463,188.61,188.54,7.77637463]
[1736450338344,2.6519,188.58,188.54,10.42867463]
[1736450338644,7.77637463,188.59,188.54,10.42867463]
[1736450338844,7.77637463,188.59,188.54,2.6523]
[1736450339238,7.77637463,188.59,188.53,4.2467]
[1736450339638,7.77637463,188.6,188.53,4.2467]
[1736450339842,2.652,188.57,188.53,4.2467]
[1736450340347,2.6518,188.58,188.55,2.6521]
[1736450340544,7.77637463,188.6,188.55,2.6521]
[1736450342940,7.77637463,188.6,188.53,1.5943]
[1736450343145,2.6518,188.58,188.54,2.6522]
[1736450343648,7.77637463,188.6,188.53,1.5943]
[1736450343849,2.6521,188.56,188.53,4.2467]
[1736450344050,1.5036,188.69,188.49,1.585]
[1736450344249,5.3023,188.63,188.49,1.585]
[1736450344446,5.3023,188.63,188.51,7.77637463]
[1736450344640,200.0608,188.68,188.53,7.77637463]
[1736450344839,0.84290843,188.67,188.55,7.77637463]
[1736450345149,1.5036,188.69,188.57,7.77637463]
[1736450345150,7.77637463,188.63,188.57,7.77637463]
[1736450345346,7.77637463,188.63,188.58,2.6517]
[1736450345347,2.6513,188.62,188.58,2.6517]
[1736450345544,1.5036,188.69,188.5,4.76]
[1736450345545,1.5036,188.69,188.59,7.77637463]
[1736450345744,7.77637463,188.69,188.61,7.77637463]
[1736450345941,10.42657463,188.69,188.64,2.6509]
[1736450346147,82.74,188.73,188.63,7.77637463]
[1736450346347,82.74,188.73,188.65,7.77637463]
[1736450346348,7.77637463,188.71,188.65,7.77637463]
[1736450346549,1.5956,188.77,188.67,7.77637463]
[1736450346754,7.77637463,188.74,188.67,7.77637463]
[1736450347255,7.77637463,188.72,188.65,7.77637463]
[1736450347854,2.6502,188.7,188.65,7.77637463]
[1736450348055,7.77637463,188.7,188.58,4.6452]
[1736450348251,1.5956,188.77,188.6,7.77637463]
[1736450348252,7.77637463,188.68,188.6,7.77637463]
[1736450348451,2.6506,188.67,188.61,2.6512]
[1736450349152,10.42677463,188.68,188.62,10.42757463]
[1736450349355,7.77637463,188.68,188.62,7.77637463]
[1736450350054,1.5956,188.77,188.62,7.77637463]
[1736450350253,7.77637463,188.71,188.64,7.77637463]
[1736450350449,10.42637463,188.71,188.65,2.6506]
[1736450350655,1.5956,188.77,188.58,4.6452]
[1736450350656,7.77637463,188.69,188.58,11.93883858]
[1736450350956,7.77637463,188.65,188.58,11.93883858]
[1736450351148,2.6513,188.61,188.58,10.42063858]
[1736450351551,2.6513,188.61,188.58,3.127]
[1736450351751,12.15128489,188.65,188.58,3.127]
[1736450351752,2.6515,188.6,188.58,3.127]
[1736450351948,2.6515,188.6,188.55,2.6521]
[1736450352154,12.15128489,188.65,188.55,2.6521]
[1736450352351,12.15128489,188.62,188.53,3.1642]